bitfinex/quotes_SOLUSD_20250402
["timestamp","ask_amount","ask_price","bid_price","bid_amount"]
[1743632171858,8.191,122.09,122.01,0.14216157]
[1743632172058,8.191,122.09,122.02,8.1953]
[1743632172569,8.1903,122.1,122.02,8.1953]
[1743632172954,8.1873,122.14,122.03,0.42648471]
[1743632173149,0.063,122.17,122.06,0.42648471]
[1743632173578,82.1,122.16,122.06,0.42648471]
[1743632173778,0.063,122.17,122.06,4.59618471]
[1743632174092,0.063,122.17,122.12,28.6602]
[1743632174283,20.4483,122.26,122.16,26.42648471]
[1743632174284,0.063,122.22,122.16,26.42648471]
[1743632174454,0.063,122.22,122.17,0.28432314]
[1743632174654,82.1,122.3,122.21,26.0]
[1743632174866,0.03,122.32,122.23,26.0]
[1743632175075,63.08514063,122.32,122.21,0.42648471]
[1743632175369,63.08514063,122.32,122.2,22.0269]
[1743632175370,0.03,122.32,122.24,0.42648471]
[1743632176059,0.03,122.32,122.25,28.6297]
[1743632176256,0.03,122.32,122.26,0.14216157]
[1743632176756,0.03,122.32,122.29,0.42648471]
[1743632177166,0.03,122.32,122.29,0.28432314]
[1743632177978,0.03,122.32,122.27,13.7]
[1743632178159,0.03,122.32,122.26,26.0]
[1743632178781,63.05514063,122.31,122.21,13.76216157]
[1743632178976,0.03,122.32,122.21,13.62]
[1743632179281,0.03,122.32,122.2,8.3069]
[1743632179282,63.05514063,122.3,122.2,8.3069]
[1743632179580,63.05514063,122.26,122.17,4.1697]
[1743632179777,145.15514063,122.25,122.18,30.0]
[1743632179961,8.1806,122.24,122.18,30.0]
[1743632180160,8.1806,122.24,121.93,40.71949336]
[1743632180161,3.1305,122.12,121.93,40.71949336]
[1743632180476,26.0,122.21,121.76,0.03]
[1743632180477,0.5,121.82,121.76,0.03]
[1743632180888,63.05514063,121.8,121.76,0.03]
[1743632181176,0.28432314,121.85,121.76,0.03]
[1743632181177,0.5,121.85,121.76,0.03]
[1743632181485,0.14216157,121.89,121.76,0.03]
[1743632181486,63.05514063,121.87,121.76,0.03]
[1743632181774,63.05514063,121.86,121.76,0.03]
[1743632181968,0.14216157,121.9,121.76,0.03]
[1743632181969,0.5,121.83,121.76,0.03]
[1743632182172,5.26017549,121.8,121.76,0.03]
[1743632183154,0.5,121.81,121.76,0.03]
[1743632183360,0.5,121.82,121.76,0.03]
[1743632183856,0.5,121.82,121.74,8.2142]
[1743632184182,0.5,121.81,121.7,8.2169]
[1743632184482,0.5,121.83,121.71,0.14216157]
[1743632184673,0.5,121.83,121.71,0.42648471]
[1743632184874,0.5,121.83,121.73,26.0]
[1743632185067,12.39542246,121.86,121.74,0.42648471]
[1743632185384,11.89542246,121.85,121.78,26.0]
[1743632185581,12.39542246,121.85,121.78,26.0]
[1743632185883,0.5,121.85,121.78,26.0]
[1743632186072,0.5,121.86,121.79,26.0]
[1743632186275,0.5,121.86,121.79,26.03]
[1743632186486,0.5,121.85,121.79,0.03]
[1743632186683,0.5,121.83,121.79,0.03]
[1743632186985,0.5,121.8,121.79,0.03]
[1743632187167,63.55514063,121.8,121.79,0.03]
[1743632187367,0.5,121.8,121.79,0.03]
[1743632188664,63.55514063,121.8,121.79,0.03]
[1743632189366,0.5,121.8,121.79,0.03]
[1743632189860,126.61028126,121.8,121.79,0.03]
[1743632190060,0.5,121.72,121.68,25.89483243]
[1743632190290,0.5,121.71,121.68,25.89483243]
[1743632190667,0.5,121.7,121.68,25.89483243]
[1743632190860,0.5,121.69,121.68,25.89483243]
[1743632191288,0.5,121.71,121.68,25.89483243]
[1743632191473,0.5,121.7,121.68,25.89483243]
[1743632191663,0.5,121.71,121.68,25.89483243]
[1743632191859,0.5,121.69,121.68,5.47527351]
[1743632192064,63.55514063,121.69,121.68,5.47527351]
[1743632193467,0.5,121.7,121.68,5.47527351]
[1743632193666,0.5,121.72,121.68,5.47527351]
[1743632193892,0.5,121.71,121.68,5.47527351]
[1743632194124,0.5,121.72,121.68,5.47527351]
[1743632194383,0.5,121.74,121.68,5.47527351]
[1743632194691,0.5,121.72,121.68,5.47527351]
[1743632195274,63.55514063,121.73,121.68,5.47527351]
[1743632195485,0.5,121.69,121.68,5.47527351]
[1743632197587,63.55514063,121.69,121.68,5.47527351]
[1743632198294,0.5,121.71,121.68,5.47527351]
[1743632198499,0.5,121.71,121.68,5.50527351]
[1743632198689,0.5,121.7,121.68,5.50527351]
[1743632198894,0.5,121.69,121.68,5.50527351]
[1743632199193,0.063,121.72,121.68,13.72317351]
[1743632199574,0.563,121.72,121.68,5.50527351]
[1743632199786,0.5,121.71,121.68,5.50527351]
[1743632199989,0.5,121.7,121.68,5.50527351]
[1743632200186,0.5,121.71,121.68,5.50527351]
[1743632200505,0.563,121.72,121.68,5.50527351]
[1743632200670,0.5,121.7,121.68,5.50527351]
[1743632201004,0.563,121.72,121.68,5.50527351]
[1743632201305,0.5,121.7,121.68,5.50527351]
[1743632201508,0.063,121.72,121.68,5.50527351]
[1743632201509,0.563,121.72,121.68,5.50527351]
[1743632201799,0.5,121.71,121.68,5.50527351]
[1743632202296,0.5,121.69,121.68,5.50527351]
[1743632202474,63.55514063,121.69,121.68,5.50527351]
[1743632203078,63.98162534,121.69,121.68,5.50527351]
[1743632203282,63.6973022,121.69,121.68,5.50527351]
[1743632204182,63.55514063,121.69,121.68,5.50527351]
[1743632204375,63.6973022,121.69,121.68,5.50527351]
[1743632205288,30.5,121.69,121.68,5.50527351]
[1743632205979,93.55514063,121.69,121.68,5.50527351]
[1743632206477,63.98162534,121.69,121.68,5.50527351]
[1743632206686,63.6973022,121.69,121.68,5.50527351]
[1743632206877,63.98162534,121.69,121.68,5.50527351]
[1743632207084,63.6973022,121.69,121.68,5.50527351]
[1743632207293,93.55514063,121.69,121.68,5.50527351]
[1743632207677,30.0,121.69,121.68,13.72347351]
[1743632207887,30.5,121.69,121.68,5.50527351]
[1743632208073,30.0,121.69,121.68,5.50527351]
[1743632208391,30.0,121.69,121.68,13.72347351]
[1743632208586,0.5,121.71,121.68,13.72347351]
[1743632210095,63.55514063,121.69,121.68,5.50527351]
[1743632210299,0.5,121.7,121.68,5.50527351]
[1743632210613,0.5,121.7,121.68,13.72347351]
[1743632212083,0.5,121.71,121.68,13.72347351]
[1743632213580,0.563,121.72,121.68,34.26907351]
[1743632213906,0.063,121.72,121.68,34.26907351]
[1743632214302,0.5,121.76,121.68,34.26907351]
[1743632214715,0.5,121.79,121.71,26.0]
[1743632214995,0.5,121.79,121.69,0.28432314]
[1743632214996,63.55514063,121.81,121.72,28.7544]
[1743632215301,0.5,121.81,121.72,28.7544]
[1743632215498,90.82,121.83,121.75,26.0]
[1743632215704,153.87514063,121.83,121.75,26.0]
[1743632215914,145.65514063,121.83,121.75,26.0]
[1743632216284,82.6,121.83,121.75,26.0]
[1743632216515,82.1,121.83,121.75,26.0]
[1743632216690,82.6,121.83,121.75,26.0]
[1743632216881,0.063,121.84,121.76,28.7449]
[1743632217082,63.61814063,121.84,121.76,28.7449]
[1743632217300,0.5,121.83,121.76,28.7449]
[1743632217601,0.5,121.83,121.76,69.8092]
[1743632218101,63.05514063,121.81,121.76,28.7449]
[1743632218301,30.0,121.77,121.76,28.7449]
[1743632218504,82.1,121.83,121.76,28.7449]
[1743632218687,63.05514063,121.8,121.76,28.7449]
[1743632219185,82.1,121.83,121.73,0.28432314]
[1743632219387,63.05514063,121.82,121.73,0.28432314]
[1743632219582,0.063,121.84,121.76,0.28432314]
[1743632219789,63.11814063,121.84,121.75,26.0]
[1743632220079,63.05514063,121.81,121.75,26.0]
[1743632220282,0.063,121.84,121.75,26.0]
[1743632220481,63.05514063,121.82,121.75,26.0]
[1743632220982,82.1,121.83,121.75,26.0]
[1743632221178,63.05514063,121.8,121.76,8.2128]
[1743632221403,63.05514063,121.78,121.73,8.2149]
[1743632221605,63.05514063,121.77,121.73,8.2149]
[1743632221901,63.05514063,121.75,121.69,20.5425]
[1743632222102,63.05514063,121.75,121.7,8.2169]
[1743632222302,82.52648471,121.79,121.7,28.7592]
[1743632222509,63.05514063,121.76,121.7,28.7592]
[1743632222692,63.05514063,121.77,121.7,28.7592]
[1743632222891,63.05514063,121.76,121.7,28.7592]
[1743632223090,63.05514063,121.74,121.69,8.2176]
[1743632223402,63.05514063,121.76,121.69,28.7616]
[1743632223610,63.05514063,121.77,121.69,28.7616]
[1743632223985,63.05514063,121.74,121.69,8.2176]
[1743632224192,90.3109,121.79,121.69,28.7616]
[1743632224392,30.0,121.73,121.69,28.7616]
[1743632224597,30.0,121.73,121.69,8.2176]
[1743632225505,63.05514063,121.71,121.68,5.50527351]
[1743632225707,63.05514063,121.7,121.68,5.50527351]
[1743632226088,63.05514063,121.69,121.68,5.50527351]
[1743632226288,39.22,121.7,121.68,5.50527351]
[1743632226497,126.53676597,121.69,121.68,0.83057351]
[1743632227205,34.64538471,121.67,121.66,0.03]
[1743632227412,34.64538471,121.67,121.53,25.90688518]
[1743632227413,0.92648471,121.66,121.53,25.90688518]
[1743632227703,0.92648471,121.66,121.53,25.90718518]
[1743632227885,63.05514063,121.6,121.53,25.90718518]
[1743632228085,0.42648471,121.65,121.53,25.90718518]
[1743632228086,63.05514063,121.58,121.53,17.67898518]
[1743632228309,63.05514063,121.56,121.53,17.67898518]
[1743632228511,125.75244283,121.56,121.53,17.67898518]
[1743632228714,126.53676597,121.56,121.53,17.67898518]
[1743632229008,126.11028126,121.56,121.53,17.67898518]
[1743632229209,13.36,121.57,121.53,17.67898518]
[1743632229505,26.14216157,121.54,121.53,17.67898518]
[1743632229818,89.48162534,121.54,121.53,17.67898518]
[1743632230104,89.1973022,121.54,121.53,17.67898518]
[1743632230310,0.14216157,121.53,121.41,26.0]
[1743632230500,63.05514063,121.51,121.38,13.46]
[1743632230698,63.05514063,121.49,121.36,9.2402]
[1743632230901,13.44,121.51,121.37,13.171]
[1743632231102,63.05514063,121.56,121.41,0.5]
[1743632231313,63.05514063,121.55,121.46,0.28432314]
[1743632231500,290.2058,121.57,121.45,24.78432314]
[1743632231708,290.2058,121.57,121.47,6.13987291]
[1743632231886,63.05514063,121.54,121.47,6.13987291]
[1743632232086,281.98,121.57,121.47,12.27974582]
[1743632232706,41.14430571,121.6,121.48,0.14216157]
[1743632232894,41.63679313,121.63,121.5,0.14216157]
[1743632233093,41.81062883,121.65,121.53,69.9415]
[1743632233318,377.74,121.67,121.54,4.55936157]
[1743632233609,30.0,121.69,121.57,26.42648471]
[1743632233816,30.0,121.69,121.61,26.0]
[1743632234292,282.12,121.75,121.62,0.42648471]
[1743632234491,63.05514063,121.74,121.65,26.0]
[1743632234714,282.12,121.75,121.65,26.0]
[1743632235211,282.12,121.75,121.66,8.2196]
[1743632235510,90.313,121.76,121.66,8.2196]
[1743632235702,0.14216157,121.75,121.65,34.2201]
[1743632236105,82.1,121.76,121.65,75.3216]
[1743632236294,145.15514063,121.76,121.66,0.42648471]
[1743632236500,8.2101,121.8,121.69,26.0]
[1743632237201,63.05514063,121.77,121.67,8.2189]
[1743632237399,28.7332,121.81,121.67,28.7662]
[1743632237600,0.14216157,121.79,121.66,12.8764]
[1743632237807,0.42648471,121.77,121.66,12.8764]
[1743632237995,63.05514063,121.68,121.59,8.2243]
[1743632238311,13.94,121.69,121.59,28.7852]
[1743632238505,282.08,121.73,121.59,69.907]
[1743632238706,282.08,121.73,121.62,26.0]
[1743632238900,63.05514063,121.72,121.62,26.0]
[1743632239420,63.05514063,121.72,121.63,8.2216]
[1743632239593,63.05514063,121.69,121.59,20.5594]
[1743632239794,63.05514063,121.67,121.6,8.2236]
[1743632240000,0.14216157,121.71,121.59,8.2241]
[1743632240001,63.05514063,121.66,121.59,8.2241]
[1743632240301,63.05514063,121.67,121.59,8.2241]
[1743632240501,63.05514063,121.64,121.58,4.2991]
[1743632240706,63.05514063,121.63,121.58,4.2991]
[1743632240900,151.9323,121.72,121.58,12.524]
[1743632241103,82.1,121.72,121.61,26.0]
[1743632241400,63.05514063,121.74,121.63,8.2216]
[1743632241600,8.2135,121.75,121.63,28.7757]
[1743632241811,82.1,121.75,121.66,26.0]
[1743632242003,8.2116,121.78,121.66,26.0]
[1743632242207,63.05514063,121.75,121.66,26.0]
[1743632242518,0.14216157,121.77,121.66,26.0]
[1743632242701,8.2108,121.79,121.66,26.0]
[1743632243416,82.1,121.8,121.7,26.0]
[1743632243602,30.0,121.71,121.7,26.0]
[1743632244010,30.0,121.71,121.67,28.7662]
[1743632244407,8.2717,121.83,121.71,26.14216157]
[1743632244997,8.2717,121.83,121.71,26.0]
[1743632245504,0.48948471,121.83,121.72,8.2155]
[1743632245699,0.063,121.77,121.72,8.2155]
[1743632246707,0.063,121.77,121.75,26.0]
[1743632247009,0.063,121.83,121.75,26.0]
[1743632247211,0.063,121.83,121.76,0.28432314]
[1743632247415,0.063,121.83,121.77,28.7427]
[1743632247615,0.063,121.83,121.77,69.8037]
[1743632248220,0.063,121.83,121.8,26.0]
[1743632248613,0.063,121.83,121.77,28.7427]
[1743632248807,0.063,121.83,121.77,8.2122]
[1743632249410,0.063,121.83,121.79,8.2108]
[1743632249918,0.063,121.83,121.77,8.2122]
[1743632250325,63.11814063,121.83,121.74,8.2142]
[1743632250525,0.063,121.83,121.77,26.0]
[1743632251248,0.063,121.83,121.73,14.8]
[1743632251249,63.05514063,121.81,121.73,14.8]
[1743632251539,0.14216157,121.81,121.7,8.2169]
[1743632251706,63.05514063,121.77,121.7,8.2169]
[1743632252041,63.05514063,121.74,121.66,15.1]
[1743632252244,63.05514063,121.72,121.64,8.2209]
[1743632252416,63.05514063,121.71,121.63,8.2215]
[1743632252610,63.05514063,121.7,121.62,24.1625]
[1743632252810,0.14216157,121.74,121.62,24.1625]
[1743632253012,63.05514063,121.72,121.62,9.0025]
[1743632253308,71.27004063,121.73,121.62,37.7805]
[1743632253543,63.05514063,121.7,121.62,17.2247]
[1743632253743,63.05514063,121.69,121.6,15.28]
[1743632253913,63.05514063,121.68,121.6,23.5035]
[1743632254337,0.42648471,121.72,121.6,8.2235]
[1743632254538,63.05514063,121.69,121.6,8.2235]
[1743632254742,23.65706157,121.73,121.6,28.7827]
[1743632254912,63.05514063,121.71,121.63,26.0]
[1743632255238,28.7393,121.79,121.64,0.42648471]
[1743632255409,28.7393,121.79,121.68,26.0]
[1743632255410,8.2108,121.79,121.68,26.0]
[1743632255611,63.05514063,121.77,121.68,26.0]
[1743632255830,63.05514063,121.75,121.65,8.2203]
[1743632256035,63.05514063,121.74,121.65,8.2203]
[1743632256235,63.05514063,121.76,121.68,26.0]
[1743632256405,63.05514063,121.75,121.68,26.0]
[1743632256723,379.24,121.81,121.69,0.14216157]
[1743632256929,63.05514063,121.79,121.69,0.14216157]
[1743632257542,63.05514063,121.8,121.7,28.7592]
[1743632258238,63.05514063,121.82,121.71,15.64648471]
[1743632258442,0.063,121.83,121.71,15.64648471]
[1743632258625,63.05514063,121.82,121.71,15.64648471]
[1743632258814,63.05514063,121.81,121.71,15.64648471]
[1743632259023,63.05514063,121.76,121.69,8.2176]
[1743632259515,63.05514063,121.76,121.68,28.7638]
[1743632260133,63.05514063,121.76,121.68,8.2182]
[1743632260332,63.05514063,121.76,121.69,26.0]
[1743632260639,82.1,121.8,121.69,26.0]
[1743632260941,63.05514063,121.79,121.69,26.0]
[1743632261536,90.3103,121.8,121.7,28.7592]
[1743632261730,63.05514063,121.79,121.7,8.2169]
[1743632262052,63.05514063,121.77,121.7,8.2169]
[1743632262551,63.05514063,121.78,121.7,8.2169]
[1743632262724,63.05514063,121.77,121.61,4.7065]
[1743632263047,63.05514063,121.72,121.63,28.91786157]
[1743632263231,63.05514063,121.72,121.63,8.2216]
[1743632263745,71.27074063,121.72,121.63,8.2216]
[1743632263922,90.3129,121.76,121.66,26.0]
[1743632264127,153.36804063,121.76,121.66,26.0]
[1743632264536,63.05514063,121.75,121.66,26.0]
[1743632265035,82.1,121.76,121.67,0.42648471]
[1743632265241,82.1,121.76,121.67,0.28432314]
[1743632265548,8.2095,121.81,121.71,26.0]
[1743632265749,71.26464063,121.81,121.71,26.0]
[1743632266120,153.36394063,121.82,121.72,0.42648471]
[1743632266326,82.1,121.82,121.72,0.42648471]
[1743632266523,145.15514063,121.82,121.72,0.42648471]
[1743632266739,145.15514063,121.82,121.71,26.0]
[1743632266740,82.1,121.82,121.71,26.0]
[1743632267050,63.05514063,121.79,121.71,26.0]
[1743632267235,90.3089,121.82,121.71,26.0]
[1743632267432,63.05514063,121.78,121.68,43.5838]
[1743632267751,8.2122,121.77,121.71,26.0]
[1743632268258,63.05514063,121.76,121.68,23.0382]
[1743632268426,63.05514063,121.75,121.63,8.2216]
[1743632268628,63.05514063,121.74,121.64,0.14216157]
[1743632268929,63.05514063,121.75,121.64,0.42648471]
[1743632269258,63.05514063,121.74,121.64,0.14216157]
[1743632269432,28.7427,121.77,121.66,26.0]
[1743632269636,63.05514063,121.74,121.66,34.2189]
[1743632270226,63.05514063,121.71,121.62,8.2223]
[1743632270432,63.05514063,121.69,121.64,0.03]
[1743632271453,121.45,121.73,121.64,0.03]
[1743632271753,8.2162,121.71,121.64,0.03]
[1743632271953,63.05514063,121.69,121.64,0.03]
[1743632272538,63.05514063,121.7,121.64,0.03]
[1743632272844,63.05514063,121.7,121.5,17.731]
[1743632272845,24.67,121.65,121.5,17.731]
[1743632273031,63.05514063,121.61,121.5,9.5011]
[1743632273230,82.1,121.65,121.53,26.0]
[1743632273544,63.05514063,121.63,121.54,0.42648471]
[1743632273743,63.05514063,121.63,121.54,0.14216157]
[1743632273939,63.05514063,121.63,121.54,0.42648471]
[1743632274255,63.05514063,121.61,121.51,0.45648471]
[1743632274459,63.05514063,121.6,121.51,0.45648471]
[1743632274762,63.05514063,121.6,121.51,0.17216157]
[1743632275259,28.7759,121.63,121.51,0.03]
[1743632275555,63.05514063,121.61,121.51,8.2597]
[1743632275734,8.2236,121.6,121.52,0.28432314]
[1743632276253,8.2236,121.6,121.51,7.04402314]
[1743632276463,63.05514063,121.63,121.54,26.0]
[1743632276764,8.2216,121.63,121.54,26.0]
[1743632277073,63.05514063,121.62,121.54,26.0]
[1743632277439,28.7757,121.63,121.54,26.0]
[1743632277665,71.27674063,121.63,121.54,26.0]
[1743632277866,63.05514063,121.62,121.55,26.0]
[1743632278235,8.2216,121.63,121.55,26.0]
[1743632278461,8.2216,121.63,121.51,8.2296]
[1743632278669,63.05514063,121.62,121.52,0.42648471]
[1743632278874,63.05514063,121.61,121.52,0.42648471]
[1743632279366,63.05514063,121.6,121.5,17.7313]
[1743632279567,63.05514063,121.6,121.51,0.14216157]
[1743632279750,8.2216,121.63,121.53,26.0]
[1743632279949,8.2216,121.63,121.54,8.2277]
[1743632279950,71.27674063,121.63,121.54,8.2277]
[1743632280258,71.27674063,121.63,121.53,34.2283]
[1743632280461,71.27674063,121.63,121.51,0.42648471]
[1743632280462,63.05514063,121.62,121.55,26.0]
[1743632280663,63.05514063,121.62,121.52,8.2288]
[1743632280664,63.05514063,121.6,121.53,26.0]
[1743632281341,63.05514063,121.59,121.51,0.14216157]
[1743632281638,96.34,121.58,121.47,8.2622]
[1743632281861,8.227,121.55,121.47,0.03]
[1743632282161,63.05514063,121.54,121.47,0.03]
[1743632282343,63.05514063,121.54,121.47,26.03]
[1743632282765,282.12,121.54,121.47,0.03]
[1743632283366,63.05514063,121.53,121.47,0.03]
[1743632283746,63.05514063,121.51,121.47,0.03]
[1743632283947,8.2304,121.5,121.47,0.03]
[1743632284211,8.2297,121.51,121.47,0.03]
[1743632284551,71.28484063,121.51,121.47,0.03]
[1743632284743,63.05514063,121.48,121.47,0.03]
[1743632285347,63.05514063,121.48,121.45,0.03]
[1743632285554,63.05514063,121.46,121.41,0.03]
[1743632285757,82.1,121.47,121.41,0.03]
[1743632285758,63.05514063,121.44,121.41,0.03]
[1743632285958,71.29094063,121.42,121.41,0.03]
[1743632286165,82.24216157,121.41,121.35,1.1174488]
[1743632286342,63.05514063,121.36,121.35,1.1174488]
[1743632286550,8.2358,121.42,121.35,1.1174488]
[1743632286755,63.05514063,121.4,121.35,1.1174488]
[1743632286951,63.05514063,121.38,121.35,1.1174488]
[1743632287151,63.05514063,121.37,121.35,1.1174488]
[1743632287352,8.2358,121.42,121.35,1.1174488]
[1743632288094,90.3354,121.43,121.35,1.1174488]
[1743632288262,63.05514063,121.42,121.35,1.1174488]
[1743632288582,63.05514063,121.42,121.35,9.3578488]
[1743632288753,63.05514063,121.41,121.35,1.1174488]
[1743632288954,82.1,121.43,121.36,8.2399]
[1743632289279,82.1,121.47,121.39,26.0]
[1743632289573,8.2284,121.53,121.43,26.0]
[1743632289774,282.36,121.54,121.43,26.0]
[1743632289979,8.2262,121.57,121.48,26.0]
[1743632290161,30.0,121.49,121.48,26.42648471]
[1743632290361,291.2218,121.63,121.5,26.0]
[1743632290582,8.2223,121.62,121.51,0.42648471]
[1743632290875,63.05514063,121.62,121.5,40.18]
[1743632291075,63.05514063,121.62,121.45,8.2338]
[1743632291076,63.05514063,121.51,121.45,8.2338]
[1743632291255,63.05514063,121.56,121.41,8.2365]
[1743632291256,63.05514063,121.48,121.41,8.2365]
[1743632291455,63.05514063,121.47,121.41,8.2365]
[1743632291677,14.38216157,121.49,121.37,8.2392]
[1743632291857,14.24,121.49,121.41,8.2365]
[1743632292057,8.229,121.52,121.41,28.8278]
[1743632292275,63.05514063,121.5,121.39,8.2379]
[1743632292458,0.42648471,121.51,121.39,8.2379]
[1743632292666,28.8017,121.52,121.4,0.42648471]
[1743632292862,63.05514063,121.5,121.37,8.2392]
[1743632293174,8.229,121.52,121.41,0.42648471]
[1743632293376,63.05514063,121.56,121.45,0.42648471]
[1743632293575,8.2272,121.55,121.44,26.0]
[1743632293783,63.05514063,121.5,121.44,26.0]
[1743632293978,8.2272,121.55,121.45,8.2338]
[1743632293979,63.05514063,121.51,121.45,8.2338]
[1743632294169,63.05514063,121.51,121.43,8.2347]
[1743632294368,63.05514063,121.51,121.42,21.01598471]
[1743632294369,63.05514063,121.5,121.42,8.66208471]
[1743632294577,63.05514063,121.48,121.42,8.2356]
[1743632294785,63.05514063,121.47,121.42,8.2356]
[1743632294984,63.05514063,121.46,121.41,8.2365]
[1743632295296,67.45444063,121.5,121.37,0.03]
[1743632295577,63.05514063,121.44,121.37,0.03]
[1743632295780,63.05514063,121.42,121.37,8.2692]
[1743632295965,63.05514063,121.41,121.37,0.03]
[1743632296162,63.05514063,121.38,121.37,0.03]
[1743632296366,43.34516157,121.43,121.37,0.03]
[1743632296570,63.05514063,121.39,121.37,0.03]
[1743632297264,63.05514063,121.38,121.37,0.03]
[1743632297782,63.05514063,121.39,121.37,0.03]
[1743632297974,63.05514063,121.38,121.37,0.03]
[1743632298176,8.2371,121.41,121.37,0.03]
[1743632298362,63.05514063,121.41,121.37,0.03]
[1743632298568,14.38,121.43,121.37,0.03]
[1743632298978,63.05514063,121.44,121.37,0.03]
[1743632299182,63.05514063,121.44,121.38,26.0]
[1743632299383,63.05514063,121.43,121.38,26.0]
[1743632299689,63.05514063,121.41,121.37,0.03]
[1743632300058,71.29014063,121.44,121.37,0.03]
[1743632300278,8.2331,121.46,121.37,0.03]
[1743632300468,63.05514063,121.43,121.37,0.03]
[1743632300666,63.05514063,121.41,121.37,0.03]
[1743632300884,63.05514063,121.42,121.37,0.03]
[1743632301182,8.2327,121.47,121.37,0.03]
[1743632301385,63.05514063,121.45,121.37,0.03]
[1743632301691,63.05514063,121.45,121.38,26.0]
[1743632301993,63.05514063,121.47,121.38,26.0]
[1743632302184,63.05514063,121.45,121.39,8.2379]
[1743632302391,282.36,121.48,121.39,8.2379]
[1743632302700,63.05514063,121.44,121.39,8.2379]
[1743632302992,290.5919,121.48,121.39,28.8326]
[1743632303173,63.05514063,121.45,121.39,28.8326]
[1743632303378,63.05514063,121.44,121.39,8.2379]
[1743632303576,63.05514063,121.44,121.37,8.269]
[1743632303974,63.05514063,121.42,121.37,8.269]
[1743632304171,63.05514063,121.44,121.37,0.03]
[1743632304377,14.18,121.45,121.37,0.03]
[1743632304598,14.18,121.45,121.37,0.17216157]
[1743632304796,14.18,121.45,121.37,26.45648471]
[1743632304980,290.592,121.48,121.38,26.0]
[1743632305301,63.05514063,121.46,121.38,26.0]
[1743632305600,290.592,121.48,121.38,26.0]
[1743632305790,63.05514063,121.45,121.38,26.0]
[1743632305984,63.05514063,121.45,121.39,26.0]
[1743632306180,63.05514063,121.45,121.4,8.2372]
[1743632306771,290.592,121.48,121.4,8.2372]
[1743632306976,63.05514063,121.46,121.4,28.8302]
[1743632307292,63.05514063,121.42,121.38,34.2385]
[1743632307887,311.1717,121.48,121.38,34.2385]
[1743632308082,63.05514063,121.44,121.38,34.2385]
[1743632308282,82.163,121.49,121.41,26.0]
[1743632308491,63.05514063,121.48,121.41,26.0]
[1743632309103,63.05514063,121.47,121.41,26.0]
[1743632309394,63.05514063,121.48,121.41,26.0]
[1743632309597,0.063,121.49,121.41,26.0]
[1743632309981,63.05514063,121.48,121.41,26.0]
[1743632310182,0.063,121.49,121.42,8.2358]
[1743632310396,63.11814063,121.49,121.42,8.2358]
[1743632310695,63.05514063,121.48,121.42,28.8254]
[1743632311479,63.11814063,121.49,121.42,28.8254]
[1743632311698,0.063,121.49,121.42,28.8254]
[1743632311879,0.063,121.49,121.43,0.42648471]
[1743632312085,0.063,121.49,121.42,28.8254]
[1743632312501,63.11814063,121.49,121.42,28.8254]
[1743632312691,63.05514063,121.48,121.42,8.2358]
[1743632312878,0.063,121.49,121.42,8.2358]
[1743632313496,0.063,121.49,121.43,0.42648471]
[1743632314298,0.063,121.49,121.46,8.2331]
[1743632315506,0.063,121.49,121.43,21.01318471]
[1743632315704,0.063,121.49,121.41,0.28432314]
[1743632315896,0.063,121.49,121.43,0.42648471]
[1743632316486,0.063,121.49,121.45,0.42648471]
[1743632317003,0.063,121.49,121.44,28.8207]
[1743632317215,63.05514063,121.48,121.4,8.2372]
[1743632317382,0.063,121.49,121.4,8.2372]
[1743632317383,63.05514063,121.46,121.4,8.2372]